fUSD/lending_fUSD_20260614
["ID","MTS","AMOUNT","RATE_DAILY","PERIOD"]
[425041917,1781442649000,-488.04753943,0.00027397,2]
[425041921,1781442649000,-500.0,0.00027397,2]
[425041918,1781442649000,-500.0,0.00027397,2]
[425041919,1781442649000,-500.0,0.00027397,2]
[425041920,1781442649000,-500.0,0.00027397,2]
[425041922,1781442649000,-503.94,0.00027397,2]
[425041923,1781442649000,-539.74,0.00027397,2]
[425041932,1781442649000,-500.0,0.00027397,2]
[425041933,1781442649000,-2233.83,0.00027397,2]
[425041931,1781442649000,-500.0,0.00027397,2]
[425041925,1781442649000,-500.0,0.00027397,2]
[425041924,1781442649000,-500.0,0.00027397,2]
[425041911,1781442649000,-774.49,0.00027397,2]
[425041926,1781442649000,-500.0,0.00027397,2]
[425041929,1781442649000,-500.0,0.00027397,2]
[425041928,1781442649000,-500.0,0.00027397,2]
[425041937,1781442649000,-973.52,0.00027397,2]
[425041935,1781442649000,-500.0,0.00027397,2]
[425041936,1781442649000,-500.0,0.00027397,2]
[425041938,1781442649000,-592.80188961,0.00027397,2]
[425041934,1781442649000,-504.55,0.00027397,2]
[425041941,1781442649000,-5980.87,0.00027397,2]
[425041940,1781442649000,-701.84,0.00027397,2]
[425041943,1781442649000,-328.47121381,0.00027397,2]
[425041939,1781442649000,-500.0,0.00027397,2]
[425041878,1781442649000,-500.0,0.00027397,2]
[425041930,1781442649000,-1259.33,0.00027397,2]
[425041916,1781442649000,-500.0,0.00027397,2]
[425041927,1781442649000,-500.0,0.00027397,2]
[425041913,1781442649000,-500.0,0.00027397,2]
[425041886,1781442649000,-500.0,0.00027397,2]
[425041914,1781442649000,-500.0,0.00027397,2]
[425041885,1781442649000,-500.0,0.00027397,2]
[425041892,1781442649000,-500.0,0.00027397,2]
[425041894,1781442649000,-500.0,0.00027397,2]
[425041891,1781442649000,-1288.42,0.00027397,2]
[425041895,1781442649000,-500.0,0.00027397,2]
[425041887,1781442649000,-500.0,0.00027397,2]
[425041889,1781442649000,-500.0,0.00027397,2]
[425041896,1781442649000,-500.0,0.00027397,2]
[425041893,1781442649000,-529.99,0.00027397,2]
[425041898,1781442649000,-500.0,0.00027397,2]
[425041905,1781442649000,-797.55,0.00027397,2]
[425041906,1781442649000,-500.0,0.00027397,2]
[425041888,1781442649000,-500.0,0.00027397,2]
[425041897,1781442649000,-500.0,0.00027397,2]
[425041915,1781442649000,-960.19,0.00027397,2]
[425041910,1781442649000,-500.0,0.00027397,2]
[425041909,1781442649000,-500.0,0.00027397,2]
[425041902,1781442649000,-500.0,0.00027397,2]
[425041901,1781442649000,-500.0,0.00027397,2]
[425041904,1781442649000,-994.42,0.00027397,2]
[425041912,1781442649000,-500.0,0.00027397,2]
[425041903,1781442649000,-500.0,0.00027397,2]
[425041908,1781442649000,-676.34,0.00027397,2]
[425041899,1781442649000,-500.0,0.00027397,2]
[425041907,1781442649000,-433.50548936,0.00027397,2]
[425041900,1781442649000,-500.0,0.00027397,2]
[425041995,1781442650000,-677.78,0.00027397,2]
[425041992,1781442650000,-911.74,0.00027397,2]
[425041985,1781442650000,-4994.37,0.00027397,2]
[425041993,1781442650000,-818.61,0.00027397,2]
[425041991,1781442650000,-500.0,0.00027397,2]
[425042003,1781442650000,-151.0,0.00027397,2]
[425041974,1781442650000,-500.0,0.00027397,2]
[425041972,1781442650000,-500.0,0.00027397,2]
[425041983,1781442650000,-500.0,0.00027397,2]
[425041981,1781442650000,-500.0,0.00027397,2]
[425041982,1781442650000,-697.28,0.00027397,2]
[425041979,1781442650000,-500.0,0.00027397,2]
[425041980,1781442650000,-500.0,0.00027397,2]
[425041996,1781442650000,-689.85,0.00027397,2]
[425042004,1781442650000,-151.0,0.00027397,2]
[425041984,1781442650000,-500.0,0.00027397,2]
[425041986,1781442650000,-500.0,0.00027397,2]
[425041988,1781442650000,-500.0,0.00027397,2]
[425041987,1781442650000,-1157.44,0.00027397,2]
[425041989,1781442650000,-1054.6,0.00027397,2]
[425041990,1781442650000,-500.0,0.00027397,2]
[425041997,1781442650000,-151.0,0.00027397,2]
[425042000,1781442650000,-881.93,0.00027397,2]
[425041999,1781442650000,-239.46124,0.00027397,2]
[425042001,1781442650000,-500.0,0.00027397,2]
[425042002,1781442650000,-6433.85,0.00027397,2]
[425041998,1781442650000,-151.0,0.00027397,2]
[425041977,1781442650000,-599.6,0.00027397,2]
[425041994,1781442650000,-151.0,0.00027397,2]
[425041975,1781442650000,-1373.05,0.00027397,2]
[425041948,1781442650000,-500.0,0.00027397,2]
[425041976,1781442650000,-500.0,0.00027397,2]
[425041945,1781442650000,-1106.32,0.00027397,2]
[425041944,1781442650000,-650.64,0.00027397,2]
[425041946,1781442650000,-500.0,0.00027397,2]
[425041954,1781442650000,-1115.2,0.00027397,2]
[425041947,1781442650000,-1811.26,0.00027397,2]
[425041952,1781442650000,-2079.48,0.00027397,2]
[425041953,1781442650000,-500.0,0.00027397,2]
[425041951,1781442650000,-500.0,0.00027397,2]
[425041950,1781442650000,-536.09,0.00027397,2]
[425041949,1781442650000,-500.0,0.00027397,2]
[425041957,1781442650000,-235.95292827,0.00027397,2]
[425041955,1781442650000,-500.0,0.00027397,2]
[425041956,1781442650000,-500.0,0.00027397,2]
[425041978,1781442650000,-500.0,0.00027397,2]
[425041959,1781442650000,-524.51,0.00027397,2]
[425041958,1781442650000,-757.99,0.00027397,2]
[425041960,1781442650000,-500.0,0.00027397,2]
[425041962,1781442650000,-6085.22,0.00027397,2]
[425041963,1781442650000,-660.65,0.00027397,2]
[425041970,1781442650000,-608.15,0.00027397,2]
[425041964,1781442650000,-500.0,0.00027397,2]
[425041961,1781442650000,-500.0,0.00027397,2]
[425041965,1781442650000,-500.0,0.00027397,2]
[425041966,1781442650000,-500.0,0.00027397,2]
[425041967,1781442650000,-500.0,0.00027397,2]
[425041968,1781442650000,-659.43,0.00027397,2]
[425041971,1781442650000,-502.46,0.00027397,2]
[425041973,1781442650000,-542.97,0.00027397,2]
[425041969,1781442650000,-1070.08,0.00027397,2]
[425042006,1781442650000,-151.0,0.00027397,2]
[425042033,1781442650000,-325.88521466,0.00027397,2]
[425042009,1781442650000,-1220.45,0.00027397,2]
[425042047,1781442650000,-744.48,0.00027397,2]
[425042045,1781442650000,-1336.75,0.00027397,2]
[425042040,1781442650000,-500.0,0.00027397,2]
[425042038,1781442650000,-500.0,0.00027397,2]
[425042037,1781442650000,-500.0,0.00027397,2]
[425042039,1781442650000,-479.7727464,0.00027397,2]
[425042041,1781442650000,-500.0,0.00027397,2]
[425042048,1781442650000,-500.0,0.00027397,2]
[425042049,1781442650000,-3655.13,0.00027397,2]
[425042058,1781442650000,-642.8,0.00027397,2]
[425042059,1781442650000,-500.0,0.00027397,2]
[425042051,1781442650000,-500.0,0.00027397,2]
[425042054,1781442650000,-500.0,0.00027397,2]
[425042035,1781442650000,-500.0,0.00027397,2]
[425042050,1781442650000,-500.0,0.00027397,2]
[425042053,1781442650000,-500.0,0.00027397,2]
[425042055,1781442650000,-711.89,0.00027397,2]
[425042056,1781442650000,-1437.07,0.00027397,2]
[425042057,1781442650000,-1431.26,0.00027397,2]
[425042061,1781442650000,-500.0,0.00027397,2]
[425042063,1781442650000,-500.0,0.00027397,2]
[425042062,1781442650000,-500.0,0.00027397,2]
[425042060,1781442650000,-500.0,0.00027397,2]
[425042066,1781442650000,-1604.32,0.00027397,2]
[425042067,1781442650000,-500.0,0.00027397,2]
[425042065,1781442650000,-579.53,0.00027397,2]
[425042068,1781442650000,-500.0,0.00027397,2]
[425042008,1781442650000,-500.0,0.00027397,2]
[425042052,1781442650000,-500.0,0.00027397,2]
[425042046,1781442650000,-537.63,0.00027397,2]
[425042064,1781442650000,-974.77,0.00027397,2]
[425042044,1781442650000,-500.0,0.00027397,2]
[425042043,1781442650000,-500.0,0.00027397,2]
[425042005,1781442650000,-500.0,0.00027397,2]
[425042010,1781442650000,-1317.2,0.00027397,2]
[425042011,1781442650000,-500.0,0.00027397,2]
[425042017,1781442650000,-702.11,0.00027397,2]
[425042016,1781442650000,-983.95,0.00027397,2]
[425042020,1781442650000,-500.0,0.00027397,2]
[425042018,1781442650000,-500.0,0.00027397,2]
[425042021,1781442650000,-500.0,0.00027397,2]
[425042013,1781442650000,-1022.01,0.00027397,2]
[425042012,1781442650000,-576.96,0.00027397,2]
[425042019,1781442650000,-500.0,0.00027397,2]
[425042014,1781442650000,-500.0,0.00027397,2]
[425042015,1781442650000,-888.36,0.00027397,2]
[425042007,1781442650000,-1000.0,0.00027397,2]
[425042023,1781442650000,-833.15,0.00027397,2]
[425042036,1781442650000,-1786.14,0.00027397,2]
[425042042,1781442650000,-559.73,0.00027397,2]
[425042034,1781442650000,-1002.54,0.00027397,2]
[425042029,1781442650000,-1070.5,0.00027397,2]
[425042022,1781442650000,-500.0,0.00027397,2]
[425042031,1781442650000,-500.0,0.00027397,2]
[425042032,1781442650000,-500.0,0.00027397,2]
[425042028,1781442650000,-500.0,0.00027397,2]
[425042024,1781442650000,-1755.69,0.00027397,2]
[425042026,1781442650000,-500.0,0.00027397,2]
[425042025,1781442650000,-500.0,0.00027397,2]
[425042027,1781442650000,-1026.47,0.00027397,2]
[425042030,1781442650000,-1138.83,0.00027397,2]
[425042105,1781442651000,-500.0,0.00027397,2]
[425042103,1781442651000,-151.0,0.00027397,2]
[425042104,1781442651000,-500.0,0.00027397,2]
[425042102,1781442651000,-500.0,0.00027397,2]
[425042100,1781442651000,-500.0,0.00027397,2]
[425042108,1781442651000,-151.0,0.00027397,2]
[425042110,1781442651000,-245.961735,0.00027397,2]
[425042107,1781442651000,-151.0,0.00027397,2]
[425042106,1781442651000,-151.0,0.00027397,2]
[425042101,1781442651000,-578.24,0.00027397,2]
[425042109,1781442651000,-4647.01,0.00027397,2]
[425042111,1781442651000,-500.0,0.00027397,2]
[425042119,1781442651000,-500.0,0.00027397,2]
[425042116,1781442651000,-500.0,0.00027397,2]
[425042122,1781442651000,-207.278336,0.00027397,2]
[425042117,1781442651000,-207.278336,0.00027397,2]
[425042114,1781442651000,-207.278336,0.00027397,2]
[425042112,1781442651000,-207.278336,0.00027397,2]
[425042115,1781442651000,-648.41,0.00027397,2]
[425042118,1781442651000,-500.0,0.00027397,2]
[425042120,1781442651000,-207.278336,0.00027397,2]
[425042123,1781442651000,-207.278336,0.00027397,2]
[425042121,1781442651000,-500.0,0.00027397,2]
[425042099,1781442651000,-500.0,0.00027397,2]
[425042125,1781442651000,-207.278336,0.00027397,2]
[425042113,1781442651000,-500.0,0.00027397,2]
[425042093,1781442651000,-282.859357,0.00027397,2]
[425042083,1781442651000,-500.0,0.00027397,2]
[425042088,1781442651000,-500.0,0.00027397,2]
[425042127,1781442651000,-500.0,0.00027397,2]
[425042070,1781442651000,-500.0,0.00027397,2]
[425042069,1781442651000,-500.0,0.00027397,2]
[425042071,1781442651000,-1401.98,0.00027397,2]
[425042072,1781442651000,-500.0,0.00027397,2]
[425042073,1781442651000,-878.19,0.00027397,2]
[425042084,1781442651000,-1440.23,0.00027397,2]
[425042081,1781442651000,-500.0,0.00027397,2]
[425042082,1781442651000,-724.37,0.00027397,2]
[425042085,1781442651000,-1387.16,0.00027397,2]
[425042078,1781442651000,-522.32,0.00027397,2]
[425042074,1781442651000,-500.0,0.00027397,2]
[425042091,1781442651000,-500.0,0.00027397,2]
[425042077,1781442651000,-996.65,0.00027397,2]
[425042079,1781442651000,-151.0,0.00027397,2]
[425042080,1781442651000,-500.0,0.00027397,2]
[425042086,1781442651000,-500.0,0.00027397,2]
[425042096,1781442651000,-1121.88,0.00027397,2]
[425042089,1781442651000,-500.0,0.00027397,2]
[425042087,1781442651000,-500.0,0.00027397,2]
[425042092,1781442651000,-657.48,0.00027397,2]
[425042098,1781442651000,-500.0,0.00027397,2]
[425042090,1781442651000,-500.0,0.00027397,2]
[425042094,1781442651000,-500.0,0.00027397,2]
[425042095,1781442651000,-500.0,0.00027397,2]
[425042097,1781442651000,-1075.14,0.00027397,2]
[425042075,1781442651000,-500.0,0.00027397,2]
[425042135,1781442651000,-500.0,0.00027397,2]
[425042076,1781442651000,-1423.94,0.00027397,2]
[425042131,1781442651000,-207.278336,0.00027397,2]
[425042152,1781442651000,-500.0,0.00027397,2]
[425042155,1781442651000,-500.0,0.00027397,2]
[425042162,1781442651000,-500.0,0.00027397,2]
[425042164,1781442651000,-500.0,0.00027397,2]
[425042163,1781442651000,-677.75,0.00027397,2]
[425042165,1781442651000,-500.0,0.00027397,2]
[425042173,1781442651000,-857.73,0.00027397,2]
[425042166,1781442651000,-500.0,0.00027397,2]
[425042169,1781442651000,-500.0,0.00027397,2]
[425042172,1781442651000,-500.0,0.00027397,2]
[425042171,1781442651000,-580.54,0.00027397,2]
[425042168,1781442651000,-500.0,0.00027397,2]
[425042174,1781442651000,-521.8,0.00027397,2]
[425042170,1781442651000,-500.0,0.00027397,2]
[425042182,1781442651000,-3274.34,0.00027397,2]
[425042167,1781442651000,-500.0,0.00027397,2]
[425042176,1781442651000,-500.0,0.00027397,2]
[425042175,1781442651000,-1138.34,0.00027397,2]
[425042177,1781442651000,-602.56,0.00027397,2]
[425042181,1781442651000,-1059.69,0.00027397,2]
[425042179,1781442651000,-500.0,0.00027397,2]
[425042180,1781442651000,-1701.25,0.00027397,2]
[425042178,1781442651000,-500.0,0.00027397,2]
[425042184,1781442651000,-603.59709287,0.00027397,2]
[425042183,1781442651000,-500.0,0.00027397,2]
[425042154,1781442651000,-591.19,0.00027397,2]
[425042151,1781442651000,-500.0,0.00027397,2]
[425042157,1781442651000,-2147.99,0.00027397,2]
[425042142,1781442651000,-500.0,0.00027397,2]
[425042134,1781442651000,-878.66,0.00027397,2]
[425042130,1781442651000,-207.278336,0.00027397,2]
[425042124,1781442651000,-500.0,0.00027397,2]
[425042129,1781442651000,-207.278336,0.00027397,2]
[425042132,1781442651000,-3105.85,0.00027397,2]
[425042128,1781442651000,-207.278336,0.00027397,2]
[425042133,1781442651000,-207.278328,0.00027397,2]
[425042136,1781442651000,-500.0,0.00027397,2]
[425042141,1781442651000,-500.0,0.00027397,2]
[425042138,1781442651000,-500.0,0.00027397,2]
[425042144,1781442651000,-500.0,0.00027397,2]
[425042143,1781442651000,-653.57,0.00027397,2]
[425042153,1781442651000,-500.0,0.00027397,2]
[425042126,1781442651000,-807.5,0.00027397,2]
[425042140,1781442651000,-1155.63,0.00027397,2]
[425042139,1781442651000,-2150.75,0.00027397,2]
[425042145,1781442651000,-757.89,0.00027397,2]
[425042146,1781442651000,-1251.25,0.00027397,2]
[425042148,1781442651000,-722.18,0.00027397,2]
[425042147,1781442651000,-500.0,0.00027397,2]
[425042150,1781442651000,-500.0,0.00027397,2]
[425042158,1781442651000,-500.0,0.00027397,2]
[425042160,1781442651000,-500.0,0.00027397,2]
[425042159,1781442651000,-1582.43,0.00027397,2]
[425042149,1781442651000,-918.17,0.00027397,2]
[425042161,1781442651000,-500.0,0.00027397,2]
[425042156,1781442651000,-500.0,0.00027397,2]
[425042137,1781442651000,-500.0,0.00027397,2]
[425042186,1781442652000,-1035.10099046,0.00027397,2]
[425042185,1781442652000,-529.41064285,0.00027397,2]
[425042187,1781442655000,-267.66715998,0.00018912,2]
[425042188,1781442655000,-332.79,0.00018912,2]
[425042189,1781442680000,-151.15,0.0001764,2]
[425042190,1781442735000,-151.0,0.0001764,2]
[425042193,1781442788000,-210.05078619,0.00016215,2]
[425042194,1781442841000,-152.0,0.00016215,2]
[425042195,1781442895000,-151.0,0.00016215,2]
[425042196,1781442898000,321.19,0.000195,120]
[425042197,1781442948000,-151.0,0.00016215,2]
[425042198,1781443002000,-151.0,0.00016215,2]
[425042199,1781443055000,-150.0,0.00016215,2]
[425042201,1781443109000,-300.0,0.00016214,2]
[425042202,1781443161000,-150.0,0.00016215,2]
[425042203,1781443312000,-152.0,0.00016215,2]
[425042204,1781443365000,-151.0,0.00016215,2]
[425042205,1781443419000,-152.0,0.00016215,2]
[425042206,1781443472000,-151.0,0.00016215,2]
[425042207,1781443526000,-300.0,0.00016214,2]
[425042208,1781443527000,18634.35,0.00013699,2]
[425042209,1781443579000,-250.0,0.00016214,2]
[425042210,1781443633000,-260.99829995,0.00016214,2]
[425042214,1781443635000,-152.0,0.00016215,2]
[425042212,1781443635000,-151.0,0.00016215,2]
[425042213,1781443635000,-150.0,0.00016215,2]
[425042211,1781443635000,-600.0,0.00016215,2]
[425042215,1781443636000,-111.20313659,0.00016215,2]
[425042220,1781443637000,-9.39910342,0.00016215,2]
[425042219,1781443637000,-151.0,0.00016215,2]
[425042218,1781443637000,-153.0,0.00016215,2]
[425042217,1781443637000,-151.0,0.00016215,2]
[425042216,1781443637000,-38.79686341,0.00016215,2]
[425042221,1781443651000,-141.60089658,0.00016215,2]
[425042222,1781443651000,-151.0,0.00016215,2]
[425042223,1781443651000,-53.19911402,0.00016215,2]
[425042225,1781443686000,-97.80088598,0.00016215,2]
[425042226,1781443740000,-151.0,0.00016215,2]
[425042227,1781443793000,-163.68,0.00016215,2]
[425042228,1781443813000,250.0,0.00014,2]
[425042252,1781443832000,-106.68394741,0.00016588,2]
[425042251,1781443832000,-203.8,0.00016438,2]
[425042247,1781443832000,-131.92605259,0.00016244,2]
[425042246,1781443832000,-19.07394741,0.00016244,2]
[425042249,1781443832000,-151.0,0.00016244,2]
[425042248,1781443832000,-151.0,0.00016244,2]
[425042250,1781443832000,-151.0,0.00016244,2]
[425042244,1781443832000,-151.0,0.00016215,2]
[425042243,1781443832000,-150.0,0.00016215,2]
[425042245,1781443832000,-151.0,0.00016215,2]
[425042262,1781443832000,-300.0,0.00017835,2]
[425042241,1781443832000,-151.0,0.00016215,2]
[425042236,1781443832000,-136.9866072,0.00016215,2]
[425042235,1781443832000,-151.0,0.00016215,2]
[425042239,1781443832000,-150.0,0.00016215,2]
[425042240,1781443832000,-152.0,0.00016215,2]
[425042238,1781443832000,-150.0,0.00016215,2]
[425042237,1781443832000,-13.0133928,0.00016215,2]
[425042234,1781443832000,-150.0,0.00016215,2]
[425042233,1781443832000,-151.0,0.00016215,2]
[425042232,1781443832000,-300.0,0.00016,2]
[425042242,1781443832000,-150.0,0.00016215,2]
[425042260,1781443832000,-444.34078342,0.000167,2]
[425042281,1781443832000,-90.88279387,0.00017837,2]
[425042256,1781443832000,-398.695418,0.000167,2]
[425042291,1781443832000,-203.8,0.0001841,2]
[425042286,1781443832000,-162.81,0.00018034,2]
[425042287,1781443832000,-637.87305287,0.00018112,2]
[425042285,1781443832000,-154.27435353,0.00018,2]
[425042289,1781443832000,-1500.0,0.00018224,2]
[425042284,1781443832000,-195.72564647,0.00018,2]
[425042290,1781443832000,-166.66,0.00018356,2]
[425042282,1781443832000,-514.0,0.00018,2]
[425042288,1781443832000,-570.82705889,0.00018112,2]
[425042283,1781443832000,-150.99,0.00018,2]
[425042292,1781443832000,-559.69579656,0.00018672,2]
[425042265,1781443832000,-600.0,0.00017835,2]
[425042271,1781443832000,-1963.50870356,0.00017837,2]
[425042258,1781443832000,-122.78273492,0.000167,2]
[425042263,1781443832000,-150.0,0.00017835,2]
[425042277,1781443832000,-951.99651628,0.00017837,2]
[425042276,1781443832000,-2483.12654737,0.00017837,2]
[425042254,1781443832000,-44.95605259,0.00016588,2]
[425042279,1781443832000,-109.2590932,0.00017837,2]
[425042267,1781443832000,-250.0,0.00017837,2]
[425042269,1781443832000,-536.49129644,0.00017837,2]
[425042273,1781443832000,-16.87345263,0.00017837,2]
[425042278,1781443832000,-1145.15899357,0.00017837,2]
[425042297,1781443838000,-2184.34232518,0.00018672,2]
[425042295,1781443838000,-4461.06857084,0.00018672,2]
[425042296,1781443838000,-446.26987052,0.00018672,2]
[425042377,1781443841000,-1271.27,0.00018672,2]
[425042383,1781443844000,-599.78908932,0.00018672,2]
[425042384,1781443844000,-2029.42715425,0.00018672,2]
[425042382,1781443844000,-1729.98508041,0.00018672,2]
[425042387,1781443844000,-8778.84769887,0.00018672,2]
[425042386,1781443844000,-2122.98673464,0.00018672,2]
[425042385,1781443844000,-4101.77617947,0.00018672,2]
[425042388,1781443844000,-10847.72803583,0.00018672,2]
[425042396,1781443846000,-348.00732758,0.00018672,2]
[425042403,1781443847000,-641.86263228,0.00018672,2]
[425042398,1781443847000,-2561.58336728,0.00018672,2]
[425042496,1781443943000,-151.0,0.00016243,2]
[425042498,1781443997000,-1001.0,0.00015374,2]
[425042499,1781444051000,-220.0,0.00015526,2]
[425042500,1781444104000,-150.0,0.00016242,2]
[425042501,1781444157000,-193.03086417,0.00015443,2]
[425042502,1781444211000,-150.0,0.00015843,2]
[425042503,1781444264000,-382.96252157,0.00016242,2]
[425042504,1781444317000,-500.0,0.00016242,2]
[425042505,1781444371000,-151.88208216,0.00016242,2]
[425042506,1781444425000,-350.04956099,0.00016242,2]
[425042507,1781444577000,-166.66,0.00016184,2]
[425042508,1781444630000,-500.0,0.0001624,2]
[425042509,1781444684000,-150.0,0.00015753,2]
[425042510,1781444737000,-400.81734994,0.00015439,2]
[425042512,1781444750000,-85.08711623,0.00016239,2]
[425042511,1781444750000,-500.0,0.00016239,2]
[425042513,1781444790000,-414.91288377,0.00016239,2]
[425042517,1781444827000,-431.31066665,0.00016239,2]
[425042515,1781444827000,-201.88583069,0.00016139,2]
[425042516,1781444827000,-500.0,0.00016239,2]
[425042518,1781444844000,-68.68933335,0.00016239,2]
[425042519,1781444846000,-496.19126929,0.00016239,2]
[425042520,1781444897000,-186.95419766,0.00016139,2]
[425042521,1781444951000,-3.80873071,0.00016239,2]
[425042522,1781445004000,-160.0,0.00016239,2]
[425042563,1781445032000,-9999.99,0.00016559,2]
[425042565,1781445032000,-1032.36,0.00016577,2]
[425042552,1781445032000,-962.61,0.00016438,2]
[425042550,1781445032000,-11.80002876,0.00016438,2]
[425042543,1781445032000,-440.4,0.00016438,2]
[425042540,1781445032000,-150.0,0.00016243,2]
[425042546,1781445032000,-504.53997124,0.00016438,2]
[425042561,1781445032000,-2509.44,0.00016559,2]
[425042559,1781445032000,-85.18254406,0.00016559,2]
[425042554,1781445032000,-166.66,0.00016525,2]
[425042556,1781445032000,-500.69745594,0.00016559,2]
[425042567,1781445032000,-650.82,0.00016582,2]
[425042541,1781445032000,-2825.93677502,0.000163,2]
[425042532,1781445032000,-131.24017506,0.00016242,2]
[425042537,1781445032000,-151.0,0.00016242,2]
[425042533,1781445032000,-151.0,0.00016242,2]
[425042534,1781445032000,-152.0,0.00016242,2]
[425042536,1781445032000,-151.0,0.00016242,2]
[425042539,1781445032000,-150.0,0.00016243,2]
[425042535,1781445032000,-152.0,0.00016242,2]
[425042530,1781445032000,-151.0,0.00016241,2]
[425042531,1781445032000,-19.75982494,0.00016242,2]
[425042528,1781445032000,-151.0,0.0001624,2]
[425042529,1781445032000,-152.0,0.0001624,2]
[425042527,1781445032000,-150.0,0.0001624,2]
[425042569,1781445032000,-816.56,0.00016624,2]
[425042538,1781445032000,-151.0,0.00016243,2]
[425042583,1781445032000,-166.66,0.00016865,2]
[425042600,1781445032000,-1890.24312821,0.00017753,2]
[425042581,1781445032000,-3580.62,0.00016779,2]
[425042579,1781445032000,-170.37,0.00016656,2]
[425042604,1781445032000,-164.31,0.00017828,2]
[425042603,1781445032000,-418.3008,0.00017764,2]
[425042605,1781445032000,-600.0,0.00017863,2]
[425042602,1781445032000,-200.0,0.00017753,2]
[425042598,1781445032000,-165.78,0.00017664,2]
[425042599,1781445032000,-500.0,0.00017753,2]
[425042596,1781445032000,-166.66,0.00017547,2]
[425042597,1781445032000,-283.67406125,0.00017584,2]
[425042588,1781445032000,-166.66,0.00017206,2]
[425042592,1781445032000,-24999.99,0.00017426,2]
[425042594,1781445032000,-3020.92,0.00017426,2]
[425042591,1781445032000,-999.99,0.00017426,2]
[425042601,1781445032000,-600.0,0.00017753,2]
[425042590,1781445032000,-1876.53,0.00017426,2]
[425042595,1781445032000,-412.03,0.00017432,2]
[425042572,1781445032000,-338.05072359,0.00016626,2]
[425042582,1781445032000,-1157.16,0.0001685,2]
[425042574,1781445032000,-409.02360398,0.00016626,2]
[425042576,1781445032000,-150.0,0.00016656,2]
[425042580,1781445032000,-167.6,0.00016751,2]
[425042584,1781445032000,-643.87071947,0.00017064,2]
[425042587,1781445032000,-171.0,0.00017152,2]
[425042586,1781445032000,-212.47,0.0001715,2]
[425042593,1781445032000,-6979.61,0.00017426,2]
[425042589,1781445032000,-164.31,0.00017252,2]
[425042585,1781445032000,-200.0,0.00017076,2]
[425042619,1781445033000,-316.8850803,0.00018277,2]
[425042620,1781445033000,-7920.34344953,0.00018284,2]
[425042618,1781445033000,-4137.28463152,0.0001827,2]
[425042614,1781445033000,-5529.0,0.000182,5]
[425042621,1781445033000,-406.30786638,0.00018284,2]
[425042613,1781445033000,-1893.31152037,0.00017977,2]
[425042615,1781445033000,-3174.9473903,0.00018202,2]
[425042617,1781445033000,-1500.0,0.00018236,2]
[425042607,1781445033000,-2500.0,0.00017863,2]
[425042612,1781445033000,-4041.0,0.000179,3]
[425042611,1781445033000,-166.66,0.00017888,2]
[425042610,1781445033000,-154.89348918,0.00017872,2]
[425042609,1781445033000,-200.0,0.00017863,2]
[425042608,1781445033000,-2050.01545962,0.00017863,2]
[425042606,1781445033000,-2500.0,0.00017863,2]
[425042622,1781445033000,-950.6552412,0.00018294,2]
[425042616,1781445033000,-2500.0,0.00018223,2]